{"text_format":"3","workbook":"xlsx","n_sheets":5,"sheets":["Cover Page","Section A","Section B","Section C","Section D"],"not_rendered":{"images":1,"defined_names":1},"read":"whole","date_system":"1900"}

{"sheet":"Cover Page","index":0,"n_rows":31,"n_cols":5,"rows_kept":31,"merged":[[1,1,1,8],[2,1,2,8],[3,2,3,3],[4,2,4,3],[5,2,5,3],[8,1,8,8],[9,1,9,8],[10,1,10,8],[11,1,11,8],[12,1,12,8],[13,1,13,8],[14,1,14,8],[27,1,30,1],[27,2,27,3],[27,4,27,5],[28,2,28,3],[28,4,28,5],[29,2,29,3],[29,4,29,5],[30,2,30,3],[30,4,30,5]]}
[]
[null,"                        SUPPLY CHAIN MANAGEMENT"]
[null,"                                Pricing schedule"]
[null,"RFB No","RFQ XX 2023 (SITA RFB 1183/2022)"]
[null,"RFB Title","Appointment of a Service Provider for the Provision of Regional Support Services for the Department of Justice and Constitutional Development for a period of three (3) years"]
[null,"Bidder Name "]
[]
[]
[null,"1. INSTRUCTION FOR COMPLETING THE PRICING SCHEDULE"]
[null,"(a)  Bidder must complete/enter YELLOW cells only"]
[null,"(b)  Unit and Line prices must be VAT EXCLUSIVE and in South African Rand (ZAR) currency."]
[null,"(c) The price must include all cost to deliver the goods or render the service, including all applicable taxes, duty fees, logistics/delivery, storage, labour, overtime and subsistence and travel"]
[null,"(d)  Bidders must complete Section A and D (complete/enter YELLOW cells only). "]
[null,"(e)  Section B contains a ceiling amound as provided by the Department for IMD Services. Bidders must not amend this amount and ensure that this amount is added to the total cost."]
[null,"(f)  Section C contains a ceiling amound as provided by the Department for Defined Projects. Bidders must not amend this amount and ensure that this amount is added to the total cost."]
[]
[]
[null,"Summary Cost (over a period of three (3) Years)","Price (Excl VAT)","VAT","Total (Incl VAT)"]
[null,"Section A: Provincial Support Services",{"$f":"'Section A'!K11","v":{"v":0,"d":"R0.00"}},{"$f":"C19*0.15","v":{"v":0,"d":"R0.00"}},{"$f":"C19+D19","v":{"v":0,"d":"R0.00"}}]
[null,"Section B: IMD Services (VAT Incl)",{"$f":"+'Section B'!E4","v":{"v":30000000,"d":"R30,000,000.00"}},"VAT Included",{"$f":"C20","v":{"v":30000000,"d":"R30,000,000.00"}}]
[null,"Section C:  Defined Projects",{"$f":"+'Section C'!E4","v":{"v":30000000,"d":"R30,000,000.00"}},"VAT Included",{"$f":"C21","v":{"v":30000000,"d":"R30,000,000.00"}}]
[null,"Section D: Contract Transitioning Services",{"$f":"'Section D'!E6","v":{"v":0,"d":"R0.00"}},{"$f":"C22*0.15","v":{"v":0,"d":"R0.00"}},{"$f":"C22+D22","v":{"v":0,"d":"R0.00"}}]
[null,"Total",{"$f":"SUM(C19:C22)","v":{"v":60000000,"d":"R60,000,000.00"}},{"$f":"SUM(D19:D22)","v":{"v":0,"d":"R0.00"}},{"$f":"SUM(E19:E22)","v":{"v":60000000,"d":"R60,000,000.00"}}]
[]
[]
[]
[]
[null,"I, the bidder, confirm that the price(s) and rate(s) quoted cover all the goods and/or works specified in the bidding documents; that the price(s) or rate(s) cover all my obligations and I accept that any mistakes regarding price(s), rate(s) or calculations will be at my own risk.\n[Note: First convert to PDF, then add signature]"]
[null,null,"Name (above)",null,"Capacity"]
[]
[null,null,"Signature (above)",null,"Date"]

{"sheet":"Section A","index":1,"n_rows":11,"n_cols":11,"rows_kept":11,"merged":[[1,1,1,10],[2,1,3,2],[2,3,3,3],[2,4,2,5],[2,6,2,7],[2,8,2,9],[2,10,3,10],[4,1,9,1],[10,1,10,3]]}
[]
[null,"Section A: Provincial Support Services "]
[null,"Description",null,"No of Months","Year 1",null,"Year 2",null,"Year 3",null,"Total\n (Excl Vat)\n(3 Years)"]
[{"$nulls":4},"Pricing per Month (each) (Excl Vat)","Total\n(12 months)\n(Excl Vat)","Pricing per Month (each)\n (Excl Vat)","Total\n(12 months)\n(Excl Vat)","Pricing per Month (each)\n (Excl Vat)","Total\n(12 months)\n(Excl Vat)"]
[null,"Provincial Support Services","Service Delivery Management",36,{"v":0,"d":"R0.00"},{"$f":"+D5*E5*12","v":{"v":0,"d":"R0.00"}},{"v":0,"d":"R0.00"},{"$f":"+D5*G5*12","v":{"v":0,"d":"R0.00"}},{"v":0,"d":"R0.00"},{"$f":"+D5*I5*12","v":{"v":0,"d":"R0.00"}},{"$f":"F5+H5+J5","v":{"v":0,"d":"R0.00"}}]
[null,null,"Network and Server Management",36,{"v":0,"d":"R0.00"},{"v":0,"d":"R0.00"},{"v":0,"d":"R0.00"},{"$f":"+D6*G6*12","v":{"v":0,"d":"R0.00"}},{"v":0,"d":"R0.00"},{"v":0,"d":"R0.00"},{"$f":"F6+H6+J6","v":{"v":0,"d":"R0.00"}}]
[null,null,"End User Device Management",36,{"v":0,"d":"R0.00"},{"v":0,"d":"R0.00"},{"v":0,"d":"R0.00"},{"v":0,"d":"R0.00"},{"v":0,"d":"R0.00"},{"v":0,"d":"R0.00"},{"v":0,"d":"R0.00"}]
[null,null,"End User Support Management",36,{"v":0,"d":"R0.00"},{"v":0,"d":"R0.00"},{"v":0,"d":"R0.00"},{"v":0,"d":"R0.00"},{"v":0,"d":"R0.00"},{"v":0,"d":"R0.00"},{"v":0,"d":"R0.00"}]
[null,null,"Managed Service",36,{"v":0,"d":"R0.00"},{"v":0,"d":"R0.00"},{"v":0,"d":"R0.00"},{"v":0,"d":"R0.00"},{"v":0,"d":"R0.00"},{"v":0,"d":"R0.00"},{"v":0,"d":"R0.00"}]
[null,null,"Shared Services",36,{"v":0,"d":"R0.00"},{"v":0,"d":"R0.00"},{"v":0,"d":"R0.00"},{"v":0,"d":"R0.00"},{"v":0,"d":"R0.00"},{"v":0,"d":"R0.00"},{"v":0,"d":"R0.00"}]
[null,"Total",null,null,{"$f":"SUM(E5:E10)","v":{"v":0,"d":"R0.00"}},{"v":0,"d":"R0.00"},{"v":0,"d":"R0.00"},{"v":0,"d":"R0.00"},{"v":0,"d":"R0.00"},{"v":0,"d":"R0.00"},{"v":0,"d":"R0.00"}]

{"sheet":"Section B","index":2,"n_rows":4,"n_cols":5,"rows_kept":4,"merged":[[1,1,1,4],[2,1,2,3],[3,2,3,3]]}
[]
[null,"Section B: IMD Services"]
[null,"Description",null,null,"IMD Services\n(as provisioned by the Department over the 3 Year contract period)\nPrice (Incl Vat)"]
[null,"IMD Services","Ceiling provision as provided by the Department; bidders must not amend this amount and ensure that this amount is added to the total cost.",null,{"v":30000000,"d":"R30,000,000.00"}]

{"sheet":"Section C","index":3,"n_rows":4,"n_cols":5,"rows_kept":4,"merged":[[1,1,1,4],[2,1,2,3],[3,2,3,3]]}
[]
[null,"Section C: Projects"]
[null,"Description",null,null,"Project to be initiated during the contract period (across all towers)."]
[null,"Defined Projects","Ceiling provision as provided by the Department; bidders must not amend this amount and ensure that this amount is added to the total cost.\n\n",null,{"v":30000000,"d":"R30,000,000.00"}]

{"sheet":"Section D","index":4,"n_rows":6,"n_cols":5,"rows_kept":6,"merged":[[1,1,1,4],[2,1,2,3],[3,1,3,3],[4,1,4,3],[5,1,5,3]]}
[]
[null,"Section D: Contract Transitioning Services"]
[null,"Description",null,null,"Price \n(Excl Vat)"]
[null,"Transitioning-In Services",null,null,{"v":0,"d":"R0.00"}]
[null,"Transitioning-Out Services",null,null,{"v":0,"d":"R0.00"}]
[null,"Total",null,null,{"$f":"SUM(E4:E5)","v":{"v":0,"d":"R0.00"}}]